Cogmind - Beta 16.1 *** ADVENTURER MODE // 2026.02.18 @ 12:06:35 Player: liability Result: Destroyed by G-34 Mercenary with Small Laser Performance ------------- Evolutions (0) 0 Regions Visited (4) 800 Robots Destroyed (21) 105 Value Destroyed (399) 399 Prototype IDs (23) 460 Alien Tech Used (0) 0 Bonus (300) 300 TOTAL SCORE: 2064 Bonus ------- Aligned with FarCom 300 Cogmind --------- Core Integrity 0/250 Matter 279/300 Energy 100/100 System Corruption 0% Temperature Cool (12) Movement Core (400) Ox7 Location -9/Mines Parts ------- > --- POWER (1) -------- (None) > --- PROPULSION (2) --- (None) > --- UTILITY (2) ------ Large Storage Unit Signal Interpreter > --- WEAPON (2) ------- Medium Laser > --- INVENTORY (15) --- Compact Matter Pod (150) Trap Reconfigurator Peak State ------------ > --- POWER ------------ Improved Ion Engine > --- PROPULSION ------- Aluminum Leg Aluminum Leg > --- UTILITY ---------- Large Storage Unit Signal Interpreter > --- WEAPON ----------- Light Assault Rifle Enhanced Flamer > --- INVENTORY -------- Improved Ion Engine Nuclear Core Reinforced Deuterium Engine Reinforced Deuterium Engine Aluminum Leg Aluminum Leg Compact Matter Pod Trap Reconfigurator Medium Laser Grenade Launcher [Rating: 12] Favorites ----------- Power Improved Ion Engine Engine Improved Ion Engine Propulsion Aluminum Leg Leg Aluminum Leg Utility Large Storage Unit Device Improved Terrain Scanner Storage Large Storage Unit Processor Signal Interpreter Weapon Grenade Launcher Energy Gun Medium Laser Ballistic Gun Light Assault Rifle Launcher Grenade Launcher Special Weapon Enhanced Flamer Build | -11 -10 -10 -10 -9 ------- Run | Yrd Mat Min Exi Min Slots Evolved . | . . . . . Power . | . . . . . Propulsion . | . . . . . Utility . | . . . . . Weapon . | . . . . . Parts Attached 18 | 6 4 4 . 4 Power 3 | 1 1 . . 1 Engine 3 | 1 1 . . 1 Core . | . . . . . Reactor . | . . . . . Propulsion 5 | 2 . 1 . 2 Treads . | . . . . . Leg 5 | 2 . 1 . 2 Wheel . | . . . . . Hover . | . . . . . Flight . | . . . . . Utility 4 | 1 1 2 . . Device 1 | . . 1 . . Storage 2 | 1 1 . . . Processor 1 | . . 1 . . Hackware . | . . . . . Protection . | . . . . . Artifact . | . . . . . Weapon 6 | 2 2 1 . 1 Energy Gun 2 | 2 . . . . Energy Cannon . | . . . . . Ballistic Gun 2 | . 1 1 . . Ballistic Cannon . | . . . . . Launcher 1 | . 1 . . . Special Weapon 1 | . . . . 1 Impact Weapon . | . . . . . Slashing Weapon . | . . . . . Piercing Weapon . | . . . . . Special Melee Weapon . | . . . . . Unidentified Prototypes . | . . . . . Parts Lost 9 | . . . . 9 Power 2 | . . . . 2 Propulsion 4 | . . . . 4 Utility . | . . . . . Weapon 3 | . . . . 3 Highest Loss Streak 5 | . . . . 5 To Critical Strikes . | . . . . . Average Backups 5 | 1 2 5 9 7 Power 1 | . . 1 3 2 Propulsion 1 | . . 1 2 1 Utility 1 | . . . 1 2 Weapon 1 | . . 1 2 1 Tool/Special . | . . . . . Unused Backups 5 | . . . . 5 Power 3 | . . . . 3 Propulsion . | . . . . . Utility 2 | . . . . 2 Weapon . | . . . . . Tool/Special . | . . . . . Average Slot Usage (%) 92 | . 85 99 100 89 Engine 13 | . 14 14 14 9 Leg 27 | . 28 28 28 24 Device 1 | . . 5 . . Storage 12 | . 14 8 14 14 Processor 7 | . . 13 14 14 Energy Gun 7 | . 16 . . 5 Ballistic Gun 8 | . 2 14 14 7 Launcher 11 | . 9 14 14 4 Peak Build Rating 12 | 6 7 10 11 12 Average Rating 8 | 3 6 9 10 9 On Entrance 6 | . 6 7 9 11 Avg Prop Armor Cover (%) . | . . . . . Naked Turns . | . . . . . Heaviest Build 32 | 14 32 31 31 31 Greatest Support 20 | 20 20 20 20 20 Greatest Overweight (x) 9 | . 1 1 1 9 Average Overweight (x) . | . . . 1 1 Largest Inventory Capacity 15 | 8 15 15 15 15 Average Capacity 12 | 5 12 11 15 15 Most Carried 10 | 5 5 6 10 10 Average Carried 5 | 1 2 5 9 6 Final Capacity 15 | 8 15 15 15 15 Final Carried 10 | . 4 6 10 2 Class Distribution -------------------- 100% | Mutant Dominant Class ---------------- Mutant | -10/Materials Mutant | -10/Mines Mutant | -10/Exiles Mutant | -9/Mines Resources | -11 -10 -10 -10 -9 ----------- Run | Yrd Mat Min Exi Min Matter Collected 479 | 239 44 187 . 9 Remotely . | . . . . . Salvage Created 338 | . 143 176 . 19 Parts 40 | . 18 22 . . Haulers Intercepted . | . . . . . Recyclers Shooed . | . . . . . Parts Field Recycled . | . . . . . Retrieved Matter . | . . . . . Parts Self-Destructed . | . . . . . Prevented . | . . . . . Parts Restored . | . . . . . Kills | -11 -10 -10 -10 -9 ------- Run | Yrd Mat Min Exi Min Combat Hostiles Destroyed 22 | . 8 10 . 4 Guns 7 | . 5 1 . 1 Cannons 1 | . . . . 1 AOE 14 | . 3 9 . 2 Classes Destroyed 5 | . 3 1 . 1 Tunneler 1 | . . 1 . . Watcher 2 | . 2 . . . Swarmer 12 | . 6 6 . . Grunt 6 | . 2 4 . . Assembled 4 | . . . . 4 Best Kill Streak 7 | . 7 3 . 4 Combat Bots Only 5 | . 5 3 . 4 Max Kills in Single Turn 3 | . 2 3 . 2 Gunslinging 1 | . 1 . . . Exploded 3 | . 2 3 . 2 Melee . | . . . . . Uniques/NPCs Destroyed . | . . . . . Combat | -11 -10 -10 -10 -9 -------- Run | Yrd Mat Min Exi Min Hostile Shots Fired 114 | . 37 10 . 67 Missed 26 | . 10 2 . 14 Hits 88 | . 27 8 . 53 Melee 4 | . . . . 4 Projectile 84 | . 27 8 . 49 AOE 7 | . . . . 7 Damage Taken 1079 | . 202 92 . 785 Core 251 | . 37 8 . 206 Absorbed by Shields . | . . . . . Ignored by Resistances 314 | . 64 27 . 223 Core Remaining (%) 100 | 100 . . . . Volleys Fired 39 | . 18 9 . 12 Largest 2 | . 2 2 . 2 Hottest 130 | . 100 50 . 130 Shots Fired 73 | . 35 18 . 20 Gun 52 | . 32 9 . 11 Cannon . | . . . . . Launcher 13 | . 3 9 . 1 Special 8 | . . . . 8 Kinetic 14 | . . 9 . 5 Thermal 46 | . 32 . . 14 Explosive 13 | . 3 9 . 1 Electromagnetic . | . . . . . Robot Hit Streak 16 | . 9 7 . 16 Robot Miss Streak 2 | . 2 2 . 1 Penetration Max . | . . . . . Secondary Targets 1 | . 1 . . . Max Gunslinging Chain 1 | . 1 . . . Shots Hit Robots 49 | . 20 13 . 16 Core Hits 40 | . 12 16 . 12 Critical Kills . | . . . . . Critical Parts Destroyed . | . . . . . Critical Strikes 2 | . . . . 2 Burn 2 | . . . . 2 Melee Attacks . | . . . . . Impact . | . . . . . Slashing . | . . . . . Piercing . | . . . . . Sneak Attacks . | . . . . . Combat Hostiles . | . . . . . Follow-up Attacks . | . . . . . Damage Inflicted 1413 | . 453 637 . 323 Guns 378 | . 224 62 . 92 Cannons . | . . . . . Explosions 942 | . 204 575 . 163 Melee . | . . . . . Ramming 28 | . 25 . . 3 Kinetic 92 | . . 62 . 30 Thermal 351 | . 224 . . 127 Explosive 942 | . 204 575 . 163 Electromagnetic . | . . . . . Impact . | . . . . . Slashing . | . . . . . Piercing . | . . . . . Highest Corruption . | . . . . . Average Corruption . | . . . . . Corruption Purged . | . . . . . Corruption Blocked . | . . . . . Overload Shots . | . . . . . Overflow Damage 49 | . 49 . . . Projectiles . | . . . . . Explosions 49 | . 49 . . . Melee . | . . . . . Knockbacks . | . . . . . Impact . | . . . . . Kinetic . | . . . . . Secondary . | . . . . . Self-Inflicted Damage 67 | . 23 36 . 8 Shots 4 | . 1 2 . 1 Rammed . | . . . . . Targets Rammed 5 | . 4 . . 1 Kicked 5 | . 4 . . 1 Crushed . | . . . . . Highest Temperature 294 | . 294 24 . 112 Average Temperature 72 | . 105 10 . 33 Received Heat Transfer 153 | . 54 9 . 90 Siege Activations . | . . . . . Martial Activations . | . . . . . Shielding Activations . | . . . . . Robots Disrupted . | . . . . . Combat Hostiles . | . . . . . Robots Corrupted . | . . . . . Combat Hostiles . | . . . . . Parts Fried . | . . . . . Impact Corruptions . | . . . . . Robots Melted . | . . . . . Combat Hostiles . | . . . . . Parts Melted 2 | . 2 . . . Heat Transferred 1479 | . 666 . . 813 Parts Sabotaged . | . . . . . Parts Stolen . | . . . . . Parts Stripped . | . . . . . Power Chain Reactions . | . . . . . Alert | -11 -10 -10 -10 -9 ------- Run | Yrd Mat Min Exi Min Maximum Alert Level . | . . . . . Low Security (%) 100 | 100 100 100 . 100 Level 1 . | . . . . . Level 2 . | . . . . . Level 3 . | . . . . . Level 4 . | . . . . . Level 5 . | . . . . . High Security . | . . . . . Max Security . | . . . . . Peak Influence 136 | . 125 136 . 9 Initial . | . . . . . Average 30 | . 22 48 . . Influence Increases 533 | . 227 297 . 9 Destroy 0b10 Robot/C 360 | . 160 200 . . Destroy 0b10 Robot/NC 15 | . 10 5 . . Destroy Leader 74 | . 34 40 . . Successful Hack 8 | . 8 . . . Disable Machine 9 | . . 9 . . Destroy Structure 67 | . 15 43 . 9 Influence Decreases 533 | . 227 297 . 9 Time Decay 524 | . 227 297 . . Lost Part 9 | . . . . 9 Squads Dispatched 1 | . 1 . . . Investigation 1 | . 1 . . . Extermination . | . . . . . Reinforcement . | . . . . . Assault . | . . . . . Garrison . | . . . . . Intercept . | . . . . . Searches Triggered . | . . . . . Construction Impeded . | . . . . . Haulers Reinforced . | . . . . . Active Scanning Responses . | . . . . . Cargo Convoy Interrupts . | . . . . . Stealth | -11 -10 -10 -10 -9 --------- Run | Yrd Mat Min Exi Min Distress Signals 1 | . 1 . . . Communications Jammed . | . . . . . Distress Signals . | . . . . . Times Spotted 48 | . 12 9 . 27 Peak Tracking Total 21 | . 5 3 . 21 Tactical Retreats 2 | . . . . 2 Traps | -11 -10 -10 -10 -9 ------- Run | Yrd Mat Min Exi Min Traps Triggered 1 | . 1 . . . Indirectly . | . . . . . Trap Hack Attempts . | . . . . . Triggered . | . . . . . Disarmed . | . . . . . Reprogrammed . | . . . . . Reused . | . . . . . Traps Extracted . | . . . . . Installed . | . . . . . Triggered . | . . . . . Machines | -11 -10 -10 -10 -9 ---------- Run | Yrd Mat Min Exi Min Machines Disabled 1 | . . 1 . . Max in Single Turn 1 | . . 1 . . Machines Repaired . | . . . . . Machines Dismantled . | . . . . . Machines Sabotaged . | . . . . . Overloaded Fab Kills . | . . . . . Hacking | -11 -10 -10 -10 -9 --------- Run | Yrd Mat Min Exi Min Machines Accessed 4 | . 3 . 1 . Terminals 2 | . 2 . . . Fabricators . | . . . . . Repair Stations . | . . . . . Recycling Units 1 | . 1 . . . Scanalyzers . | . . . . . Garrison Access . | . . . . . Total Hacks 4 | . 3 . 1 . Successful 4 | . 3 . 1 . Failed . | . . . . . Catastrophic . | . . . . . Database Lockouts . | . . . . . Manual 1 | . . . 1 . Terminals 2 | . 2 . . . Fabricators . | . . . . . Repair Stations . | . . . . . Recycling Units 1 | . 1 . . . Scanalyzers . | . . . . . Garrison Access . | . . . . . Terminal Hacks 3 | . 2 . 1 . Terminal Index 1 | . 1 . . . Hauler Manifests 1 | . 1 . . . Proto ID Catalog 1 | . . . 1 . Fabricator Hacks . | . . . . . Repair Station Hacks . | . . . . . Recycling Unit Hacks 1 | . 1 . . . Report Inventory 1 | . 1 . . . Scanalyzer . | . . . . . Garrison Access Hacks . | . . . . . Unauthorized Hacks . | . . . . . Terminals . | . . . . . Fabricators . | . . . . . Repair Stations . | . . . . . Recycling Units . | . . . . . Scanalyzers . | . . . . . Garrison Access . | . . . . . Data Cores Recovered . | . . . . . Used . | . . . . . Hacking Detections 1 | . 1 . . . Full Trace Events . | . . . . . Feedback Events . | . . . . . Feedback Blocked . | . . . . . Robot Schematics Acquired . | . . . . . Robots Built . | . . . . . Authchips . | . . . . . Time . | . . . . . Total Robot Build Rating . | . . . . . Part Schematics Acquired . | . . . . . Parts Built . | . . . . . Authchips . | . . . . . Time . | . . . . . Total Part Build Rating . | . . . . . Part Studies Acquired . | . . . . . Parts Repaired . | . . . . . Time . | . . . . . Parts Recycled . | . . . . . Recycled Matter . | . . . . . Retrieved Matter . | . . . . . Retrieved Components . | . . . . . Parts Scanalyzed . | . . . . . Part Schematics Acquired . | . . . . . Parts Damaged . | . . . . . Bothacking | -11 -10 -10 -10 -9 ------------ Run | Yrd Mat Min Exi Min Used RIF Installer . | . . . . . Robots Hacked . | . . . . . Non-combat . | . . . . . Combat . | . . . . . Robot Hacks Applied . | . . . . . Relay Couplers Released . | . . . . . Fabnet Peak Effective % . | . . . . . Robots Rewired . | . . . . . Allies Hacked . | . . . . . Hacks Repelled . | . . . . . Allies | -11 -10 -10 -10 -9 -------- Run | Yrd Mat Min Exi Min Total Allies . | . . . . . Largest Group . | . . . . . Highest-Rated Group . | . . . . . Highest-Rated Ally . | . . . . . Total Orders . | . . . . . Ally Attacks . | . . . . . Total Damage . | . . . . . Kills . | . . . . . Allies Corrupted . | . . . . . Allies Melted . | . . . . . Intel | -11 -10 -10 -10 -9 ------- Run | Yrd Mat Min Exi Min Active Infowar (turns) 256 | . . 256 . . Terrain 256 | . . 256 . . Robot Analysis Total . | . . . . . Derelict Logs Recovered 1 | . . . . 1 Drone Launches . | . . . . . Drone Recoveries . | . . . . . Exploration | -11 -10 -10 -10 -9 ------------- Run | Yrd Mat Min Exi Min Turns Passed 2440 | 46 1020 696 559 119 Spaces Moved 1365 | 39 579 418 293 36 Core 19 | 17 . . . 2 Treads . | . . . . . Legs 1346 | 22 579 418 293 34 Wheels . | . . . . . Hover . | . . . . . Flight . | . . . . . Fastest Speed 50 | 50 120 120 190 190 Average Speed 166 | 89 163 157 190 204 Slowest Speed 500 | 120 190 190 190 500 Overloaded Moves . | . . . . . Propulsion Burnouts . | . . . . . Robots Hopped . | . . . . . Potential Cave-ins . | . . . . . Cave-ins Triggered . | . . . . . Exploration Rate (%) 47 | 3 79 83 63 9 Regions Visited 4 Branch Regions 3 Pre-discovered Areas 1 | . . 1 . . Known Exits Taken 2 | . . 1 1 . Unknown Exits Taken 2 | 1 1 . . . Scrap Searched 1 | . . 1 . . Spaces Dug . | . . . . . Terrain Destroyed 74 | . 12 53 . 9 Melee . | . . . . . Projectile . | . . . . . AOE 74 | . 12 53 . 9 Terrain Rammed . | . . . . . Walls Destroyed . | . . . . . Machines Disabled . | . . . . . Actions | -11 -10 -10 -10 -9 --------- Run | Yrd Mat Min Exi Min Total 1458 | 50 614 439 296 59 Wait 1 | . . . . 1 Move 1361 | 38 578 417 292 36 Hop . | . . . . . Pick Up 22 | 6 7 5 4 . Fast Attach . | . . . . . Attach 12 | 6 . 1 . 5 Detach . | . . . . . Swap 9 | . 4 4 . 1 Drop 9 | . 3 3 . 3 Fire 39 | . 18 9 . 12 Melee . | . . . . . Ram . | . . . . . Kick 5 | . 4 . . 1 Crush . | . . . . . Escape Stasis . | . . . . . Rewire . | . . . . . Trap . | . . . . . Miscellaneous . | . . . . . Route ------- -11/Scrapyard -10/Materials (discovered 5 exits: *Mat x3 / [*Min x2]) -10/Mines (discovered 3 exits: *Mat x2 / *Exi) -10/Exiles (discovered 2 exits: *Min x2) -9/Mines History --------- Turn | Location | Event 28 | -11/Scrapyard | Discovered new exit (range 15) 47 | -11/Scrapyard | Entered Materials 217 | -10/Materials | Discovered new exit (range 9) 304 | -10/Materials | Build established: Mutant 668 | -10/Materials | Discovered new exit (range 4) 691 | -10/Materials | Discovered new exit (range 16) 794 | -10/Materials | Discovered new exit (range 15) 970 | -10/Materials | Discovered new exit (range 5) 1067 | -10/Materials | Entered Mines 1350 | -10/Mines | A weapon hastily lodged in a ceiling crevice suddenly fell to the ground 1405 | -10/Mines | Discovered new exit (range 6) 1426 | -10/Mines | Identified exit to Materials 1473 | -10/Mines | Discovered exit to Materials (range 6) 1599 | -10/Mines | Learned location of Storage (-7) 1700 | -10/Mines | Found DCF Scrap (14 items) 1753 | -10/Mines | Deemed a non-threat by the Exiles lab entrance 1753 | -10/Mines | Discovered new exit (range 5) 1759 | -10/Mines | Identified exit to Exiles 1763 | -10/Mines | Entered Exiles 1823 | -10/Exiles | Discovered new exit (range 14) 1842 | -10/Exiles | Identified exit to Mines 1882 | -10/Exiles | Met 8R-AWN 1907 | -10/Exiles | Met EX-HEX 1974 | -10/Exiles | Met EX-BIN 2000 | -10/Exiles | Aligned with FarCom system 2002 | -10/Exiles | Given EX-Vault access code 2065 | -10/Exiles | Opened EX-Vault 2080 | -10/Exiles | Found Trap Reconfigurator 2143 | -10/Exiles | Exiles lab attacked by MAIN.C 2305 | -10/Exiles | Discovered exit to Mines (range 10) 2322 | -10/Exiles | Left Exiles lab with Trap Reconfigurator 2322 | -10/Exiles | Entered Mines 2323 | -9/Mines | Assembled infested the area 2348 | -9/Mines | Learned location of 1 exit from Materials 2390 | -9/Mines | Core integrity fell below 50% 2419 | -9/Mines | Lost 5 parts (1p2n2w) 2437 | -9/Mines | Core integrity fell below 20% 2441 | -9/Mines | Destroyed by G-34 Mercenary with Small Laser Last Messages --------------- Aluminum Leg destroyed. as-77335 destroyed. as-98795 destroyed. Dropped Rigged Rnf. Deuterium Engine. Rigged Rnf. Deuterium Engine explodes. as-89348 destroyed. Dropped Rigged Rnf. Deuterium Engine. The unstable cave ceiling collapses. as-52501 destroyed. Acquired 9 matter. Rigged Rnf. Deuterium Engine explodes. G-34 Mercenary suffers critical hit (Burn). Enh. Flamer destroyed. Aluminum Leg destroyed. D-53 Grenadier suffers critical hit (Burn). Aluminum Leg destroyed. R-06 Scavenger collects Particle Gun. The unstable cave ceiling collapses. R-06 Scavenger collects Sml. Laser. Imp. Ion Engine destroyed. Map ----- +----------------------------------------------------+ | ???????????????????????????????? | | ???????????????????????????????? | | ???????????????????????????????? | | ???????????????????????????????? | | ???????????????????????????????? | | ???????????????????????????????? | | ???????????????????????????????? | | ???????????????????????????????? | | ???????????????????????????????? | | ???????????????????????????????? | | ???????????????????????????????? | | ???????????????????????????????? | | ????????????# ???????????????? | | ???????????? ???????????????? | | ???????????? ???????????????? | | ???????????? ???????????????? | | ???????????? ???????????????? | | ???????????? ???????????????? | | ???????????? ????????????????? | | ???????????? ????????????????? | | ???????????? ????????????????? | | ?????######? ?????###????????? | | ???### ## ???## ##???????? | | ??## ## "???# #???????? | | ??# # #??## #???? #? | | ??# @ ## #### ## #? | | ??# # ## #? | | ??# d % r%= ######???? | | ??# ####% ##????????? | | ??# #?# ###?????????? | | ??# g ##?# ##???????????? | | ??# # ##?# ##????????????? | | ?## #?#####?????????????? | | ?# g #???????????????????? | | ?## #???????????????????? | | ??## #???????????????????? | | ???## #???????????????????? | | ????###### #???????????????????? | | ?????????? #???????????????????? | | ??????????? ???????????????????? | | ???????????##??????????????????? | | ???????????????????????????????? | | ???????????????????????????????? | | ???????????????????????????????? | | ???????????????????????????????? | | ???????????????????????????????? | | ???????????????????????????????? | | ???????????????????????????????? | | ???????????????????????????????? | | ???????????????????????????????? | +----------------------------------------------------+ Best States ------------- Heat Dissipation 25 Energy Generation 12 Energy Capacity 265 Matter Stores 300 Matter Capacity 300 Sight Range 16 Terrain Scan Range 16 Terrain Scan Density 10 Resistance: KI 20 Resistance: TH 20 Resistance: EX 20 Resistance: EM 20 Resistance: I 20 Resistance: S 20 Resistance: P 20 Evasion (%) 55 Offensive Hacking 10 Item Schematics ----------------- None Robot Schematics ------------------ None Fabricated ------------ Nothing Repaired ---------- Nothing Studied --------- None Alien Tech Used ----------------- None Achievements -------------- None Challenges ------------ None Game ------ Seed AntigravCompositeSuite Manual? 0 Play Time 00:16:08 Cumulative 21.8 hours Start 2026.02.18 @ 11:52:32 End 2026.02.18 @ 12:06:35 Sessions 1 Manual Loads 0 Difficulty Adventurer Special Mode None Game No. 23 Rogue 0 Adventurer 23 Explorer 0 Win Type - Total 0 Types 0/0/0/0/0/0/0/0/0/0 Lore% 6 Gallery% 26 Achievement% 22 Wizard Run 0 Options --------- Layout 1 ASCII 0 Keyboard 0 Movement Mouse Keybinds 0 Fullscreen 1 Font 24/X11 Map View 50x35 Zoom Use 0% Tactical HUD 0 Map Filters NONE Filters NONE Steam 1 RUN: e11017c0-4b4c-4cdf-93a5-b97b0d8e8107